bitfinex/quotes_SOLUSD_20251006
["timestamp","ask_amount","ask_price","bid_price","bid_amount"]
[1759763998223,14.86073369,235.52,235.46,2.81577267]
[1759763998435,14.86073369,235.52,235.44,0.7]
[1759763998614,14.86073369,235.52,235.45,2.81589523]
[1759763998830,14.86073369,235.52,235.45,3.51589523]
[1759763999034,0.67,235.51,235.41,5.89335627]
[1759763999219,0.67,235.5,235.42,2.81647845]
[1759763999524,14.86325802,235.48,235.43,2.81647845]
[1759763999727,14.86325802,235.48,235.44,2.81647845]
[1759763999929,15.53325802,235.48,235.41,6.59335627]
[1759764000126,4.24610419,235.51,235.42,3.51583702]
[1759764000312,4.24610419,235.51,235.44,20.8]
[1759764000521,4.24610419,235.51,235.45,3.51583702]
[1759764000726,4.24610419,235.51,235.46,2.81583702]
[1759764001033,0.67,235.5,235.42,12.261261]
[1759764001224,0.67,235.5,235.43,2.81559038]
[1759764001412,0.67,235.5,235.44,2.81559038]
[1759764001730,4.24646481,235.49,235.45,2.81559038]
[1759764001910,4.24646481,235.49,235.46,2.81559038]
[1759764002112,4.24646481,235.49,235.42,12.961261]
[1759764002311,4.24646481,235.49,235.43,2.81781192]
[1759764002525,4.24646481,235.49,235.44,2.81781192]
[1759764002825,4.24646481,235.49,235.45,2.81781192]
[1759764003009,0.67,235.48,235.46,2.81781192]
[1759764003211,0.67,235.48,235.47,2.82021937]
[1759764003417,4.24646481,235.49,235.47,2.82021937]
[1759764003734,14.86199575,235.5,235.42,12.961261]
[1759764004034,14.86199575,235.5,235.43,2.8209759]
[1759764004216,14.86199575,235.5,235.44,2.8209759]
[1759764004410,0.67,235.49,235.45,2.8209759]
[1759764004617,14.86199575,235.5,235.46,2.8209759]
[1759764004817,4.9162845,235.5,235.47,2.8209759]
[1759764005022,4.2462845,235.5,235.43,0.7]
[1759764005220,4.2462845,235.5,235.44,2.82009788]
[1759764005425,4.2462845,235.5,235.45,2.82009788]
[1759764005731,10.61464406,235.53,235.46,2.82009788]
[1759764006031,0.67,235.5,235.47,2.82009788]
[1759764006217,0.67,235.52,235.48,2.82009788]
[1759764006526,0.67,235.51,235.43,0.7]
[1759764006828,0.67,235.51,235.44,2.82392533]
[1759764007034,10.61464406,235.53,235.45,2.82392533]
[1759764007329,10.61464406,235.53,235.43,6.59335627]
[1759764007330,0.67,235.5,235.46,2.82392533]
[1759764007528,0.67,235.5,235.47,2.82392533]
[1759764007733,0.67,235.5,235.48,2.82392533]
[1759764008032,4.24646481,235.49,235.43,10.13289674]
[1759764008231,4.24646481,235.49,235.44,6.36756487]
[1759764008533,4.24646481,235.49,235.45,2.8280244]
[1759764008728,4.24538314,235.55,235.46,3.52818628]
[1759764008938,0.67,235.61,235.48,20.8]
[1759764009111,0.67,235.6,235.52,20.8]
[1759764009433,0.67,235.67,235.53,19.32468013]
[1759764009627,0.67,235.66,235.54,34.48818628]
[1759764009835,4.24376167,235.64,235.55,2.82818628]
[1759764010133,4.24376167,235.64,235.56,2.82818628]
[1759764010431,0.67,235.68,235.57,3.52818628]
[1759764010640,0.67,235.68,235.58,3.52818628]
[1759764010811,0.67,235.68,235.59,2.82818628]
[1759764011012,0.67,235.68,235.6,2.82818628]
[1759764011225,0.67,235.68,235.61,2.82818628]
[1759764011407,0.67,235.68,235.62,2.82818628]
[1759764011603,0.67,235.68,235.63,2.82818628]
[1759764011829,4.24322145,235.67,235.64,2.82818628]
[1759764012030,4.24322145,235.67,235.65,2.82818628]
[1759764012330,4.24322145,235.67,235.66,2.82818628]
[1759764012715,10.60553532,235.73,235.66,3.52818628]
[1759764012917,10.5990588,235.87,235.67,2.82818628]
[1759764013230,10.87647521,235.8,235.68,3.52818628]
[1759764013529,0.67,235.79,235.69,2.82818628]
[1759764013830,10.87647521,235.77,235.7,2.82818628]
[1759764014131,15.51560569,235.76,235.71,2.82818628]
[1759764014326,0.67,235.75,235.72,2.82818628]
[1759764014526,0.67,235.74,235.66,3.53523285]
[1759764014730,0.67,235.74,235.67,2.82976811]
[1759764015035,0.67,235.74,235.68,2.82976811]
[1759764015329,0.67,235.74,235.69,2.82976811]
[1759764015525,0.67,235.74,235.64,4.23523285]
[1759764015526,0.67,235.74,235.7,2.82976811]
[1759764015734,0.67,235.74,235.66,0.7]
[1759764016037,4.24214143,235.73,235.67,2.82867011]
[1759764016231,4.24214143,235.73,235.68,2.82867011]
[1759764016538,4.24214143,235.73,235.69,2.82867011]
[1759764016730,4.24214143,235.73,235.7,2.82867011]
[1759764016946,4.24214143,235.73,235.71,2.82867011]
[1759764017107,4.24214143,235.73,235.66,0.7]
[1759764017430,14.84749501,235.73,235.67,2.82693722]
[1759764017640,14.84749501,235.73,235.68,2.82693722]
[1759764017930,4.24214143,235.73,235.69,2.82693722]
[1759764018132,4.95214143,235.73,235.7,2.82693722]
[1759764018350,4.95214143,235.73,235.66,0.7]
[1759764018512,4.95214143,235.73,235.67,2.82644781]
[1759764018714,4.24214143,235.73,235.68,2.82644781]
[1759764018918,4.95214143,235.73,235.69,2.82644781]
[1759764019221,4.95214143,235.73,235.66,0.7]
[1759764019437,4.24214143,235.73,235.67,2.8257287]
[1759764019735,0.71,235.72,235.68,2.8257287]
[1759764019920,0.71,235.72,235.65,20.8]
[1759764020121,6.96950093,235.7,235.66,2.82353981]
[1759764020323,0.71,235.69,235.61,20.8]
[1759764020530,22.52825574,235.71,235.62,3.49400445]
[1759764020721,15.55875481,235.71,235.63,2.82400445]
[1759764020927,15.55875481,235.71,235.64,2.82400445]
[1759764021127,15.55875481,235.71,235.65,2.82400445]
[1759764021337,21.81825574,235.71,235.66,2.82400445]
[1759764021516,0.71,235.7,235.62,0.67]
[1759764021837,0.71,235.7,235.63,2.82404693]
[1759764022017,4.24286138,235.69,235.64,2.82404693]
[1759764022217,4.24286138,235.69,235.65,2.82404693]
[1759764022416,4.24286138,235.69,235.64,0.67]
[1759764022738,4.24286138,235.69,235.65,2.82347889]
[1759764022921,4.24286138,235.69,235.62,20.8]
[1759764023123,4.95286138,235.69,235.63,2.82362628]
[1759764023339,4.95286138,235.69,235.64,2.82362628]
[1759764023650,4.24286138,235.69,235.62,21.47]
[1759764023823,4.95286138,235.69,235.63,2.82355112]
[1759764024029,15.56001484,235.69,235.64,2.82355112]
[1759764024234,14.85001484,235.69,235.62,0.67]
[1759764024555,15.56001484,235.69,235.63,2.82320734]
[1759764024717,15.56001484,235.69,235.64,2.82320734]
[1759764024913,4.24286138,235.69,235.65,2.82320734]
[1759764025247,4.24263261,235.71,235.66,0.67]
[1759764025436,0.71,235.75,235.67,3.49161156]
[1759764025648,0.71,235.74,235.66,0.67]
[1759764025817,0.71,235.74,235.67,2.82184301]
[1759764026139,10.87647521,235.84,235.68,24.29184301]
[1759764026338,0.71,235.78,235.69,3.49127398]
[1759764026543,0.71,235.77,235.7,2.82127398]
[1759764026724,0.71,235.77,235.69,20.8]
[1759764026919,0.71,235.77,235.7,2.82160536]
[1759764027121,0.71,235.77,235.69,21.47]
[1759764027435,0.71,235.8,235.71,20.8]
[1759764027643,0.71,235.83,235.72,3.49148421]
[1759764027826,0.71,235.82,235.72,0.67]
[1759764028156,14.84245791,235.81,235.72,0.67]
[1759764028449,15.55245791,235.81,235.72,0.67]
[1759764028825,4.95070226,235.81,235.72,0.67]
[1759764029536,15.55245791,235.81,235.69,0.67]
[1759764029746,0.71,235.83,235.71,20.8]
[1759764029915,0.71,235.82,235.72,0.67]
[1759764030118,4.9505792,235.82,235.72,0.67]
[1759764031025,15.55188528,235.82,235.72,0.67]
[1759764034053,17.48557556,235.82,235.7,20.8]
[1759764034257,0.71,235.81,235.7,20.8]
[1759764034433,0.71,235.8,235.71,20.8]
[1759764034746,0.71,235.8,235.72,0.67]
[1759764035060,0.71,235.8,235.71,20.8]
[1759764035263,0.66,235.79,235.71,20.8]
[1759764035439,0.66,235.79,235.72,0.68]
[1759764036148,4.24124183,235.78,235.72,0.68]
[1759764037046,0.66,235.79,235.72,0.68]
[1759764037251,4.24070226,235.81,235.72,0.68]
[1759764037753,4.24070226,235.81,235.72,4.92228893]
[1759764037949,14.84141296,235.83,235.72,0.68]
[1759764038245,0.66,235.8,235.72,0.68]
[1759764038821,0.66,235.8,235.72,4.92230567]
[1759764039062,0.66,235.8,235.73,0.68]
[1759764039347,14.84141296,235.83,235.74,33.51117189]
[1759764039348,4.24034261,235.83,235.74,33.51117189]
[1759764039648,4.24034261,235.83,235.75,3.49117189]
[1759764039852,4.24034261,235.83,235.76,2.81117189]
[1759764040052,4.24016282,235.84,235.77,2.81117189]
[1759764040255,0.66,235.83,235.76,0.68]
[1759764040456,4.24016282,235.84,235.76,4.92151391]
[1759764040673,0.66,235.87,235.77,21.48]
[1759764040961,0.66,235.87,235.78,0.68]
[1759764041554,4.23944378,235.88,235.79,33.50765225]
[1759764041862,4.23944378,235.88,235.8,0.68]
[1759764042062,4.89944378,235.88,235.8,0.68]
[1759764042639,4.89944378,235.88,235.81,30.7]
[1759764042854,4.89944378,235.88,235.8,0.68]
[1759764043151,0.1,235.89,235.81,30.68]
[1759764043353,4.33930839,235.89,235.82,0.68]
[1759764043546,0.66,235.88,235.79,21.48]
[1759764043745,0.66,235.87,235.8,2.80668427]
[1759764043948,4.23998304,235.85,235.79,30.72]
[1759764044154,4.23998304,235.85,235.8,2.80713771]
[1759764044342,4.89998304,235.85,235.79,30.72]
[1759764044546,15.49994064,235.85,235.79,30.72]
[1759764045043,15.49994064,235.85,235.78,0.68]
[1759764045044,14.83994064,235.85,235.76,20.8]
[1759764045231,0.66,235.84,235.77,2.80790858]
[1759764045553,0.66,235.84,235.76,30.7]
[1759764045736,0.66,235.84,235.77,3.48772344]
[1759764045938,0.66,235.84,235.77,0.68]
[1759764046141,4.24034261,235.83,235.77,0.68]
[1759764046346,14.84119915,235.83,235.76,30.7]
[1759764046558,14.84119915,235.83,235.77,2.80647989]
[1759764046855,4.24034261,235.83,235.78,2.80659304]
[1759764047060,0.66,235.82,235.75,31.38]
[1759764047263,0.66,235.85,235.76,2.8065312]
[1759764047444,0.66,235.84,235.77,2.8065312]
[1759764047643,0.66,235.84,235.75,31.38]
[1759764047644,0.66,235.83,235.78,2.8065312]
[1759764047949,0.66,235.82,235.75,31.38]
[1759764048146,4.24070226,235.81,235.76,2.80751362]
[1759764048449,4.24070226,235.81,235.77,2.80751362]
[1759764048663,4.24070226,235.81,235.78,2.80751362]
[1759764048949,4.24070226,235.81,235.76,0.72]
[1759764049166,4.24070226,235.81,235.77,2.80902388]
[1759764049478,4.24070226,235.81,235.78,2.80902388]
[1759764049639,4.2405126,235.83,235.79,2.81044944]
[1759764049959,15.51136914,235.83,235.76,0.72]
[1759764050179,4.9105126,235.83,235.77,2.81039174]
[1759764050339,4.9105126,235.83,235.78,2.81039174]
[1759764050541,0.67,235.82,235.79,2.81039174]
[1759764050740,2.60369028,235.81,235.73,3.53523285]
[1759764050944,1.93369028,235.78,235.74,2.81256623]
[1759764051155,0.67,235.77,235.67,38.43844513]
[1759764051365,0.67,235.79,235.71,20.8]
[1759764051566,15.51136914,235.83,235.72,3.53347633]
[1759764051765,4.9105126,235.83,235.76,20.8]
[1759764052081,4.23944378,235.88,235.78,20.8]
[1759764052249,0.67,235.85,235.79,2.81347633]
[1759764052443,0.67,235.87,235.8,2.81347633]
[1759764052653,0.67,235.87,235.81,2.81347633]
[1759764052851,0.67,235.87,235.82,2.81347633]
[1759764053051,0.67,235.87,235.79,0.72]
[1759764053052,0.67,235.86,235.79,0.72]
[1759764053268,0.67,235.86,235.8,2.81508087]
[1759764053471,0.67,235.86,235.81,2.81508087]
[1759764053640,14.83805324,235.88,235.82,2.81508087]
[1759764053839,0.67,235.87,235.83,2.81508087]
[1759764054054,0.67,235.86,235.79,0.72]
[1759764054263,0.67,235.86,235.8,2.81725232]
[1759764054264,4.23998304,235.85,235.8,2.81725232]
[1759764054572,0.67,235.84,235.81,2.81725232]
[1759764054760,0.67,235.84,235.82,2.81725232]
[1759764054949,0.67,235.84,235.83,2.81725232]
[1759764055143,4.23998304,235.85,235.83,2.81725232]
[1759764055343,4.23998304,235.85,235.84,2.81725232]
[1759764055778,10.59970543,235.86,235.84,2.81725232]
[1759764055779,0.1,235.89,235.84,3.53725232]
[1759764056073,0.1,235.89,235.85,3.53725232]
[1759764056273,0.1,235.89,235.86,2.81725232]
[1759764056451,0.77,235.89,235.87,2.81725232]
[1759764056651,0.1,235.89,235.83,31.46]
[1759764056861,0.1,235.89,235.84,2.81865267]
[1759764057178,0.1,235.89,235.85,2.81865267]
[1759764057357,0.1,235.89,235.86,2.81865267]
[1759764057674,4.33926774,235.89,235.87,2.81865267]
[1759764057972,5.00926774,235.89,235.88,2.81865267]
[1759764058193,5.00926774,235.89,235.83,31.44]
[1759764058348,5.00926774,235.89,235.84,2.81804156]
[1759764058675,5.00926774,235.89,235.85,2.81804156]
[1759764058845,0.67,235.88,235.86,2.81804156]
[1759764059045,0.67,235.88,235.83,30.72]
[1759764059271,14.93742789,235.89,235.84,2.81778148]
[1759764059582,15.60742789,235.89,235.85,2.81778148]
[1759764059749,14.93742789,235.89,235.86,2.81778148]
[1759764060078,4.33926774,235.89,235.82,31.42]
[1759764060261,0.1,235.89,235.83,2.81780877]
[1759764060458,4.3393896,235.89,235.84,2.81780877]
[1759764060780,4.3393896,235.89,235.85,2.81780877]
[1759764060951,0.1,235.89,235.86,3.53780877]
[1759764061266,0.1,235.89,235.87,2.81780877]
[1759764061479,0.1,235.89,235.88,2.81780877]
[1759764062255,4.33926406,235.89,235.88,2.81780877]
[1759764062982,0.1,235.89,235.88,2.81780877]
[1759764063198,4.33926406,235.89,235.88,2.81780877]
[1759764064284,4.33926406,235.89,235.84,31.38]
[1759764064473,4.33926406,235.89,235.85,2.82011536]
[1759764064674,4.33926406,235.89,235.86,2.82011536]
[1759764064873,0.1,235.89,235.87,0.72]
[1759764065263,0.1,235.89,235.84,0.72]
[1759764065476,5.00935805,235.89,235.85,2.82181252]
[1759764065767,14.9375182,235.89,235.83,0.72]
[1759764065985,14.9375182,235.89,235.84,2.82209997]
[1759764066184,14.9375182,235.89,235.85,2.82209997]
[1759764066485,14.9375182,235.89,235.84,0.72]
[1759764066672,14.9375182,235.89,235.85,2.82265722]
[1759764066976,0.1,235.89,235.86,24.34265722]
[1759764067164,0.1,235.89,235.87,2.82265722]
[1759764067486,0.1,235.89,235.88,2.82265722]
[1759764067688,0.1,235.89,235.88,34.16265722]
[1759764069789,0.1,235.89,235.88,23.62265722]
[1759764070398,4.33926406,235.89,235.88,23.62265722]
[1759764070574,4.33926406,235.89,235.88,2.82265722]
[1759764070779,0.1,235.89,235.88,2.82265722]
[1759764071590,4.33926406,235.89,235.88,2.82265722]
[1759764071897,0.1,235.89,235.88,2.82265722]
[1759764073183,4.33926406,235.89,235.88,2.82265722]
[1759764073384,0.1,235.89,235.88,2.82265722]
[1759764076392,0.1,235.89,235.88,24.34265722]
[1759764076810,0.1,235.89,235.88,2.82265722]
[1759764077306,4.33926406,235.89,235.88,2.82265722]
[1759764077505,5.00926406,235.89,235.88,2.82265722]
[1759764077806,5.00926406,235.89,235.88,2.82579938]
[1759764077988,4.33926406,235.89,235.88,2.82579938]
[1759764078512,0.78,235.89,235.88,2.82579938]
[1759764078682,5.01926406,235.89,235.83,31.24]
[1759764078888,5.01926406,235.89,235.84,2.82633982]
[1759764079084,5.01926406,235.89,235.85,2.82633982]
[1759764079280,5.01926406,235.89,235.86,2.82633982]
[1759764079479,5.01926406,235.89,235.8,3.53523285]
[1759764079480,1.93369028,235.87,235.8,3.53523285]
[1759764079679,0.68,235.86,235.81,2.82832184]
[1759764079905,0.68,235.86,235.82,2.82832184]
[1759764080103,0.68,235.86,235.83,2.82832184]
[1759764080289,0.68,235.86,235.84,2.82832184]
[1759764080495,0.68,235.86,235.85,2.82832184]
[1759764080731,4.91980327,235.86,235.85,2.82832184]
[1759764080890,0.68,235.86,235.85,2.82832184]
[1759764081085,0.1,235.89,235.85,2.82832184]
[1759764081395,4.23945293,235.88,235.86,2.82928746]
[1759764081588,0.1,235.89,235.87,2.82928746]
[1759764081887,0.1,235.89,235.88,2.82928746]
[1759764082096,4.33933605,235.89,235.88,2.82928746]
[1759764082299,0.1,235.89,235.88,2.82928746]
[1759764086111,0.1,235.89,235.88,3.48928746]
[1759764086504,0.1,235.89,235.88,2.82928746]
[1759764087698,0.1,235.89,235.88,3.48928746]
[1759764087905,0.1,235.89,235.88,7.02452031]
[1759764088505,0.1,235.89,235.88,3.48928746]
[1759764088706,0.1,235.89,235.88,2.82928746]
[1759764088905,0.1,235.89,235.88,3.48928746]
[1759764089320,0.1,235.89,235.88,2.82928746]
[1759764091099,0.1,235.89,235.88,3.48928746]
[1759764093318,0.1,235.89,235.88,7.02452031]
[1759764095207,0.1,235.89,235.88,6.36452031]
[1759764095928,4.33926406,235.89,235.88,2.82928746]
[1759764096130,0.1,235.89,235.88,2.82928746]
[1759764096331,3.7675722,235.89,235.88,2.82928746]
[1759764096545,8.00683626,235.89,235.88,2.82928746]
[1759764097413,4.33926406,235.89,235.88,2.82928746]
[1759764097609,8.00683626,235.89,235.88,2.82928746]
[1759764098927,3.1175722,235.89,235.88,2.82928746]
[1759764099135,0.1,235.89,235.88,2.82928746]
[1759764099506,0.1,235.89,235.88,6.36452031]
[1759764099931,0.65,235.92,235.88,2.82928746]
[1759764100130,3.0175722,235.9,235.89,6.37024186]
[1759764100438,3.6675722,235.9,235.89,6.37024186]
[1759764100624,3.6675722,235.9,235.89,2.82928746]
[1759764100947,7.90665655,235.9,235.89,2.82928746]
[1759764101106,4.88908435,235.9,235.89,2.82928746]
[1759764101310,7.90665655,235.9,235.89,2.82928746]
[1759764102534,3.6675722,235.9,235.89,2.82928746]
[1759764103531,3.0175722,235.9,235.89,2.82928746]
[1759764103739,0.65,235.92,235.89,2.82928746]
[1759764103937,0.65,235.91,235.88,3.5409544]
[1759764104134,0.65,235.91,235.89,2.8337155]
[1759764104348,14.83427989,235.94,235.9,2.8337155]
[1759764104548,4.88836568,235.94,235.91,2.8337155]
[1759764104721,4.88836568,235.94,235.92,2.8337155]
[1759764104917,4.88836568,235.94,235.93,2.83376115]
[1759764105343,7.90593788,235.94,235.93,2.83376115]
[1759764105531,0.65,235.94,235.93,2.83376115]
[1759764105750,7.90593788,235.94,235.93,2.83376115]
[1759764108346,4.23836568,235.94,235.93,2.83376115]
[1759764108540,7.92593788,235.94,235.93,2.83376115]
[1759764108919,7.25593788,235.94,235.93,2.83376115]
[1759764109141,26.48165563,235.95,235.93,3.53376115]
[1759764109336,26.48165563,235.95,235.91,3.54220144]
[1759764109337,23.46408343,235.95,235.94,2.83376115]
[1759764109525,26.48165563,235.95,235.94,2.83376115]
[1759764110224,23.46408343,235.95,235.94,2.83376115]
[1759764110632,26.48165563,235.95,235.94,2.83376115]
[1759764110944,27.15165563,235.95,235.94,2.83376115]
[1759764112235,57.71165563,235.95,235.94,2.83376115]
[1759764113226,68.30712077,235.95,235.87,3.54220144]
[1759764113541,3.0175722,235.92,235.88,2.83355952]
[1759764113750,0.67,235.91,235.89,2.83355952]
[1759764113948,0.67,235.92,235.9,2.83355952]
[1759764114123,4.23890466,235.91,235.88,3.54220144]
[1759764114330,4.23890466,235.91,235.89,2.83344447]
[1759764114645,4.23890466,235.91,235.9,2.83344447]
[1759764116048,4.90890466,235.91,235.9,2.83344447]
[1759764116651,7.92647686,235.91,235.9,2.83344447]
[1759764117536,4.90890466,235.91,235.9,2.83344447]
[1759764117742,0.67,235.91,235.9,2.83344447]
[1759764117946,31.23,235.91,235.9,2.83344447]
[1759764118124,35.46890466,235.91,235.9,2.83344447]
[1759764119237,4.90890466,235.91,235.9,2.83344447]
[1759764119742,38.48647686,235.91,235.9,2.83344447]
[1759764120152,35.46890466,235.91,235.9,2.83344447]
[1759764120552,4.90890466,235.91,235.9,2.83344447]
[1759764120935,4.23865408,235.93,235.9,5.47721651]
[1759764121140,0.67,235.92,235.91,2.83344447]
[1759764121630,4.23865408,235.93,235.91,2.83344447]
[1759764121949,4.23865408,235.93,235.92,2.83344447]
[1759764122726,4.23865408,235.93,235.92,5.47452698]
[1759764122927,19.22589473,235.95,235.92,9.71672842]
[1759764123149,19.22589473,235.95,235.86,30.56]
[1759764123150,19.22589473,235.95,235.94,3.53833096]
[1759764123333,19.22589473,235.95,235.94,9.71285794]
[1759764124660,19.22589473,235.95,235.94,9.32028398]
[1759764124834,19.22589473,235.95,235.94,39.86028398]
[1759764125030,8.50184531,235.95,235.94,55.49607833]
[1759764125235,7.35184531,235.95,235.94,54.97512487]
[1759764125467,21.03619886,236.34,235.94,54.97512487]
[1759764125468,0.1,236.14,236.03,10.87647521]
[1759764125632,0.1,236.14,236.1,3.52815567]
[1759764125831,0.1,236.14,236.11,5.47452698]
[1759764126037,0.1,236.14,236.12,5.47452698]
[1759764126235,0.1,236.14,236.12,47.05100219]
[1759764126556,0.1,236.14,236.12,55.99555016]
[1759764126852,3.0175722,236.32,236.2,20.8]
[1759764127055,0.67,236.33,236.21,33.59344447]
[1759764127250,1.69344425,236.38,236.22,2.83344447]
[1759764127452,12.98144722,236.46,236.27,10.87647521]
[1759764127453,3.0175722,236.42,236.27,10.87647521]
[1759764127656,12.98144722,236.46,236.29,10.87647521]
[1759764127965,4.22821807,236.51,236.3,11.67879817]
[1759764128261,0.67,236.5,236.31,2.83344447]
[1759764128456,20.0,236.58,236.33,20.8]
[1759764128457,0.67,236.49,236.33,20.8]
[1759764128656,0.67,236.49,236.34,2.94393267]
[1759764128657,26.03,236.49,236.34,2.94393267]
[1759764128841,26.03,236.49,236.3,31.18]
[1759764128842,0.1,236.37,236.3,31.18]
[1759764129042,7.34444707,236.36,236.31,2.94414187]
[1759764129251,0.67,236.36,236.25,20.8]
[1759764129567,7.34444707,236.35,236.26,8.81654652]
[1759764129771,0.67,236.36,236.27,5.72245339]
[1759764129952,0.67,236.35,236.22,31.2]
[1759764130159,14.80979984,236.33,236.23,2.94066055]
[1759764130466,31.87,236.32,236.24,2.93833848]
[1759764130784,0.67,236.31,236.16,31.2]
[1759764130976,7.34444707,236.29,236.17,8.81424072]
[1759764131150,0.67,236.31,236.18,8.81424072]
[1759764131347,7.34444707,236.27,236.19,8.81424072]
[1759764131546,0.67,236.3,236.2,8.81424072]
[1759764131853,0.67,236.3,236.21,8.81424072]
[1759764132055,0.67,236.3,236.22,2.93857954]
[1759764132367,4.23280423,236.25,236.23,2.93857954]
[1759764132567,14.81481481,236.25,236.13,20.8]
[1759764132751,14.81481481,236.25,236.14,8.79944427]
[1759764132950,4.23280423,236.25,236.15,8.79944427]
[1759764133150,7.34444707,236.24,236.16,8.79944427]
[1759764133494,0.67,236.23,236.17,2.93378251]
[1759764133645,7.34444707,236.18,236.11,31.2]
[1759764133848,0.67,236.19,236.12,5.71272312]
[1759764134053,0.67,236.22,236.13,6.02147068]
[1759764134265,7.34444707,236.21,236.14,8.79937149]
[1759764134448,15.48481481,236.25,236.15,2.93448887]
[1759764134449,7.34444707,236.19,236.15,2.93448887]
[1759764134647,0.67,236.19,236.16,2.93448887]
[1759764134847,14.81795088,236.2,236.08,20.8]
[1759764135149,14.81795088,236.2,236.09,8.7971151]
[1759764135462,14.81795088,236.2,236.1,8.7971151]
[1759764135786,7.34444707,236.17,236.11,8.7971151]
[1759764135950,7.34444707,236.14,236.12,8.7971151]
[1759764136151,0.67,236.14,236.13,2.9335889]
[1759764136355,12.24922305,236.14,236.13,2.9335889]
[1759764136856,22.836163,236.14,236.0,3.51559895]
[1759764137065,7.34444707,236.08,236.01,8.80096175]
[1759764137263,0.67,236.13,236.02,8.80096175]
[1759764137264,7.34444707,236.07,236.02,8.80096175]
[1759764137467,7.34444707,236.07,236.03,8.80096175]
[1759764137683,7.34444707,236.07,236.04,5.71384298]
[1759764137882,0.67,236.09,236.05,2.93572929]
[1759764138080,7.34444707,236.07,236.06,2.93572929]
[1759764138395,7.34444707,236.12,236.06,8.80244848]
[1759764138593,4.23423804,236.17,236.07,8.80244848]
[1759764138795,4.23423804,236.17,236.01,4.23704267]
[1759764138796,7.34444707,236.16,236.08,8.80244848]
[1759764138998,7.34444707,236.16,236.09,8.80244848]
[1759764139291,7.34444707,236.14,236.1,8.80016404]
[1759764139473,4.95394305,236.19,236.11,5.71479502]
[1759764139790,7.34444707,236.15,236.12,2.93572929]
[1759764140091,7.34444707,236.15,236.13,2.93572929]
[1759764140389,4.23394305,236.19,236.14,2.93572929]
[1759764140595,2.20929115,236.23,236.15,5.71018692]
[1759764140596,4.2333418,236.22,236.15,5.71018692]
[1759764140891,7.34444707,236.2,236.16,2.93572929]
[1759764141086,7.34444707,236.18,236.17,2.93572929]
[1759764141270,4.2333418,236.22,236.17,2.93572929]
[1759764141271,4.9533418,236.22,236.17,2.93572929]
[1759764141469,4.2333418,236.22,236.18,2.93572929]
[1759764141666,11.57778887,236.22,236.09,3.51559895]
[1759764141873,12.29778887,236.22,236.1,8.78443507]
[1759764142075,4.9533418,236.22,236.11,8.78443507]
[1759764142266,7.34444707,236.21,236.12,8.78443507]
[1759764142467,4.23357472,236.21,236.13,8.78443507]
[1759764142787,7.34444707,236.21,236.14,8.78443507]
[1759764143088,11.57802833,236.21,236.15,8.78443507]
[1759764143393,7.34444707,236.18,236.16,8.78443507]
[1759764143568,0.72,236.18,236.17,2.92832258]
[1759764143762,8.06444707,236.18,236.17,2.92832258]
[1759764143963,8.06444707,236.18,236.05,3.51559895]
[1759764144162,7.34444707,236.11,236.06,8.74889512]
[1759764144366,0.72,236.21,236.07,8.74889512]
[1759764144587,20.8,236.24,236.04,31.18]
[1759764144588,7.34444707,236.17,236.08,5.66725725]
[1759764144784,0.72,236.16,236.09,2.77335077]
[1759764144981,0.72,236.2,236.1,2.77335077]
[1759764145181,0.72,236.2,236.04,31.18]
[1759764145182,4.68382084,236.18,236.11,2.77335077]
[1759764145472,4.68382084,236.16,236.12,2.77335077]
[1759764145672,4.68382084,236.15,236.07,20.8]
[1759764145899,0.72,236.2,236.08,2.77105407]
[1759764146073,4.68382084,236.17,236.09,6.28665302]
[1759764146274,4.68382084,236.15,236.1,2.77105407]
[1759764146473,4.68382084,236.14,236.07,20.8]
[1759764146673,4.23441734,236.16,236.08,2.7724203]
[1759764146886,4.23441734,236.16,236.09,2.7724203]
[1759764147081,21.16569619,236.24,236.07,20.8]
[1759764147082,0.72,236.19,236.1,2.7724203]
[1759764147286,4.68382084,236.16,236.11,2.7724203]
[1759764147478,0.72,236.15,236.12,2.7724203]
[1759764147684,0.72,236.14,236.13,2.7724203]
[1759764147886,4.68382084,236.14,236.13,2.7724203]